bitfinex-derivatives/quotes_SOLF0:USTF0_20241021
["timestamp","ask_amount","ask_price","bid_price","bid_amount"]
[1729493879950,2.9547,169.27,169.21,2.9556]
[1729493880453,7.4947,169.27,169.21,2.9556]
[1729493881162,4.54,169.27,169.19,1.286]
[1729493881555,2.9551,169.24,169.19,1.286]
[1729493881750,4.54,169.23,169.13,4.54]
[1729493883160,4.54,169.23,169.16,2.9565]
[1729493883351,4.54,169.23,169.15,2.91646163]
[1729493883556,4.54,169.23,169.16,1.3099]
[1729493885556,4.54,169.23,169.18,2.9561]
[1729493885759,4.54,169.23,169.16,1.3099]
[1729493886150,4.54,169.23,169.19,2.9559]
[1729493886552,4.54,169.23,169.16,1.3099]
[1729493886753,7.4953,169.23,169.18,2.9561]
[1729493887470,7.4953,169.23,169.17,2.9562]
[1729493887757,7.4953,169.23,169.16,1.3099]
[1729493888862,7.4953,169.23,169.18,2.9561]
[1729493891266,4.54,169.23,169.18,2.9561]
[1729493893563,7.4953,169.23,169.18,2.9561]
[1729493893766,4.54,169.23,169.18,2.9561]
[1729493893967,4.54,169.23,169.16,4.2663]
[1729493894267,7.4953,169.23,169.16,1.3099]
[1729493895970,7.4953,169.23,169.18,2.9561]
[1729493896468,7.4953,169.23,169.05,332.38994435]
[1729493896469,4.54,169.23,168.92,17.7]
[1729493896668,65.0876,169.26,169.0,8.447]
[1729493896669,1.2338,169.22,169.0,8.447]
[1729493896865,4.62,169.21,169.01,5.70713689]
[1729493897066,5.8538,169.22,169.02,64.92713689]
[1729493897272,5.8538,169.22,169.03,1.08713689]
[1729493897466,5.8538,169.22,169.04,1.08713689]
[1729493897661,5.8538,169.22,169.05,5.70713689]
[1729493897864,5.8538,169.22,169.16,2.9563]
[1729493898070,5.8538,169.22,169.14,2.99646083]
[1729493898270,4.62,169.22,169.12,4.62]
[1729493898571,4.62,169.22,169.17,2.9561]
[1729493899071,65.0876,169.26,169.14,4.25882976]
[1729493899272,7.5749,169.25,169.14,1.3351]
[1729493899668,4.62,169.26,169.22,2.9554]
[1729493899869,4.62,169.26,169.17,4.62]
[1729493900573,1.2794,169.28,169.17,4.62]
[1729493900574,5.8994,169.28,169.17,4.62]
[1729493901072,1.3312,169.27,169.14,4.3544434]
[1729493901370,1.3312,169.27,169.14,5.9551]
[1729493901567,0.7658,169.26,169.16,2.9563]
[1729493901971,2.9552,169.23,169.16,2.9563]
[1729493902171,4.62,169.22,169.14,1.3351]
[1729493902371,4.62,169.21,169.14,1.3351]
[1729493902765,4.62,169.21,169.14,4.2918]
[1729493902967,4.62,169.21,169.13,1.2222]
[1729493903772,2.9562,169.18,169.11,5.95204534]
[1729493903973,0.7658,169.26,169.09,2.6566]
[1729493903974,4.62,169.17,169.09,1.303]
[1729493904368,7.5764,169.17,169.09,1.303]
[1729493905177,2.9566,169.16,169.09,1.303]
[1729493906377,2.9566,169.16,169.08,1.3357]
[1729493906967,2.9566,169.16,169.08,4.2936]
[1729493907367,2.1042,169.19,169.08,1.3357]
[1729493907574,4.62,169.18,169.08,1.3357]
[1729493907782,4.62,169.18,169.09,2.99397498]
[1729493908075,4.62,169.18,169.09,7.61397498]
[1729493908573,1.3315,169.2,169.13,2.9569]
[1729493908771,4.62,169.19,169.1,1.304]
[1729493909472,4.62,169.19,169.11,1.3496]
[1729493909871,7.576,169.19,169.12,2.9571]
[1729493911869,4.62,169.19,169.11,1.3496]
[1729493912681,4.62,169.24,169.11,1.3496]
[1729493913482,4.62,169.24,169.1,1.304]
[1729493913690,0.7649,169.23,169.1,1.304]
[1729493914283,1.222,169.22,169.1,1.304]
[1729493914778,1.2997,169.21,169.08,1.3357]
[1729493914979,4.62,169.2,169.08,1.3357]
[1729493915375,4.62,169.2,169.11,2.9573]
[1729493915776,4.62,169.2,169.08,1.3357]
[1729493916676,7.5758,169.2,169.11,2.9572]
[1729493916972,4.62,169.2,169.11,2.96622866]
[1729493917173,4.62,169.2,169.11,4.62]
[1729493917371,4.62,169.2,169.12,2.89937907]
[1729493917983,7.5758,169.2,169.11,4.62]
[1729493918484,7.5758,169.2,169.14,2.9568]
[1729493919078,2.9563,169.17,169.12,2.957]
[1729493920279,4.62,169.16,169.05,1.2604]
[1729493920481,2.9569,169.14,169.05,1.2604]
[1729493921579,2.9568,169.15,169.09,2.9577]
[1729493923889,4.62,169.16,169.13,2.957]
[1729493924087,4.66,169.17,169.05,1.2604]
[1729493924590,4.66,169.17,169.12,2.957]
[1729493925885,4.66,169.17,169.1,1.2639]
[1729493926091,1.2997,169.21,169.1,1.2639]
[1729493926397,2.9557,169.21,169.13,2.9569]
[1729493926687,2.9557,169.21,169.13,4.66]
[1729493927697,2.9557,169.21,169.15,2.9565]
[1729493927883,2.9559,169.2,169.13,4.66]
[1729493928196,4.66,169.22,169.13,4.66]
[1729493928788,4.66,169.22,169.1,5.9239]
[1729493928993,2.5797,169.21,169.1,1.2639]
[1729493929397,2.9564,169.17,169.11,2.9572]
[1729493929590,4.66,169.18,169.11,2.9572]
[1729493930793,2.9566,169.16,169.1,4.2214]
[1729493931584,2.9568,169.14,169.06,4.66]
[1729493931790,4.66,169.18,169.06,4.66]
[1729493932787,2.9567,169.15,169.1,2.9574]
[1729493932992,4.66,169.18,169.1,2.9574]
[1729493933498,2.9565,169.16,169.1,2.9574]
[1729493933792,4.66,169.18,169.09,2.9576]
[1729493934196,4.66,169.18,168.97,104.8561392]
[1729493934197,4.66,169.18,169.0,2.98729553]
[1729493934391,4.66,169.18,169.07,2.9579]
[1729493934592,2.957,169.14,169.04,4.66]
[1729493934796,4.66,169.14,169.04,4.66]
[1729493935400,2.957,169.13,169.07,2.958]
[1729493936585,4.66,169.14,169.1,2.9575]
[1729493936987,7.6169,169.14,169.07,2.958]
[1729493937192,7.6169,169.14,169.04,4.66]
[1729493937193,0.7643,169.2,169.04,4.66]
[1729493937394,4.66,169.19,169.05,4.66]
[1729493937598,2.9569,169.14,169.08,2.9578]
[1729493937789,4.66,169.19,169.05,4.66]
[1729493938191,7.6161,169.19,169.13,2.957]
[1729493938595,5.5354,169.21,169.15,2.9565]
[1729493938801,4.66,169.2,169.15,2.9565]
[1729493939391,4.66,169.2,169.1,3.9362]
[1729493939795,4.66,169.2,169.1,2.5919]
[1729493939992,4.66,169.2,169.15,2.9566]
[1729493940194,4.66,169.2,169.1,2.5919]
[1729493940393,2.5797,169.21,169.1,2.5919]
[1729493940594,4.66,169.2,169.1,2.5919]
[1729493940798,2.9562,169.18,169.13,2.9568]
[1729493941003,2.9562,169.18,169.1,2.5919]
[1729493941397,2.9562,169.18,169.12,2.957]
[1729493942908,4.66,169.2,169.1,2.5919]
[1729493943207,2.9565,169.16,169.11,2.9573]
[1729493943401,7.6165,169.16,169.1,1.3142]
[1729493943597,7.6165,169.16,169.1,4.2717]
[1729493943795,4.66,169.16,169.07,4.66]
[1729493943994,4.66,169.16,169.09,2.9577]
[1729493944901,2.9568,169.14,169.05,2.5909]
[1729493945110,4.66,169.16,169.05,2.5909]
[1729493946004,2.9568,169.14,169.08,2.9577]
[1729493946205,4.66,169.16,169.08,2.9577]
[1729493946401,2.9571,169.13,169.08,2.9577]
[1729493946903,2.9573,169.12,169.07,2.958]
[1729493947207,4.66,169.16,169.07,2.958]
[1729493947603,2.957,169.13,169.08,2.9578]
[1729493947797,4.66,169.12,169.08,2.9578]
[1729493948605,4.66,169.12,169.07,2.958]
[1729493948797,7.6172,169.12,169.07,2.958]
[1729493949002,4.66,169.12,169.07,2.958]
[1729493950202,4.66,169.12,169.05,2.5909]
[1729493950706,4.66,169.12,169.07,2.958]
[1729493951304,4.66,169.12,169.05,2.5909]
[1729493951705,2.9574,169.11,169.05,2.5909]
[1729493952208,2.9578,169.09,169.05,1.3531]
[1729493952408,4.66,169.12,169.05,1.3531]
[1729493952705,4.66,169.12,168.99,2.9594]
[1729493952706,3.03243315,169.11,168.99,2.9594]
[1729493952905,3.2501,169.11,168.96,2.90521888]
[1729493953107,3.2501,169.11,168.95,2.96468415]
[1729493953313,3.2501,169.11,168.9,4.94]
[1729493953505,3.2501,169.11,168.9,6.2759]
[1729493953706,3.2501,169.11,168.9,1.3359]
[1729493954007,2.9586,169.05,168.98,2.9595]
[1729493954202,4.94,169.04,168.95,2.88740108]
[1729493954413,4.94,169.03,168.91,4.94]
[1729493955708,4.94,169.09,168.91,4.94]
[1729493956709,4.94,169.09,168.99,2.9593]
[1729493957311,2.9582,169.06,168.99,2.9593]
[1729493957502,4.94,169.05,168.99,2.9593]
[1729493957904,4.94,169.05,168.9,1.3359]
[1729493958107,4.94,169.05,168.96,2.9599]
[1729493958300,4.94,169.05,168.92,2.97390353]
[1729493958500,4.1963,169.04,168.97,2.9597]
[1729493958710,4.1963,169.04,168.94,2.92151689]
[1729493958909,4.1963,169.04,168.91,4.94]
[1729493959107,4.1963,169.04,168.97,2.9596]
[1729493959304,2.9588,169.03,168.97,2.9596]
[1729493959507,2.9588,169.03,168.91,4.94]
[1729493959703,2.9588,169.03,168.91,7.89644132]
[1729493959909,1.2376,169.04,168.91,2.95644132]
[1729493960111,2.959,169.02,168.95,2.96]
[1729493960313,4.94,169.01,168.92,3.01013736]
[1729493960509,4.94,169.01,168.91,4.94]
[1729493960911,4.94,169.01,168.96,2.9598]
[1729493961110,4.94,169.01,168.91,7.94125528]
[1729493961312,4.94,169.01,168.96,2.9599]
[1729493962119,4.94,169.01,168.91,7.94125528]
[1729493962511,4.94,169.01,168.91,3.00125528]
[1729493962819,4.94,169.01,168.83,5.9244]
[1729493962820,4.94,169.01,168.83,4.94]
[1729493963316,2.9598,168.97,168.9,2.9608]
[1729493963513,4.94,168.96,168.9,2.9608]
[1729493963908,4.94,168.96,168.87,2.950667]
[1729493964111,4.94,168.96,168.83,4.94]
[1729493964806,4.94,168.96,168.84,3.8439]
[1729493965006,4.96,168.98,168.84,6.73148438]
[1729493965212,1.2409,169.03,168.93,2.9603]
[1729493965413,4.96,169.02,168.89,4.96]
[1729493965814,4.96,169.02,168.85,4.96]
[1729493966317,4.96,169.02,168.88,2.9613]
[1729493966517,2.9603,168.95,168.88,2.9613]
[1729493966716,7.9203,168.95,168.88,2.9613]
[1729493966913,2.9605,168.94,168.88,2.9613]
[1729493967415,2.9605,168.93,168.84,6.73148438]
[1729493967716,4.96,168.95,168.78,104.57924185]
[1729493967911,4.96,168.95,168.83,1.2732]
[1729493968420,2.9605,168.93,168.84,2.91080884]
[1729493968607,2.9223585,168.94,168.77,2.97655302]
[1729493968809,1.3459,168.92,168.76,2.5117]
[1729493969008,2.9618,168.86,168.79,2.9629]
[1729493969212,1.3459,168.92,168.76,5.48647615]
[1729493969410,4.96,168.91,168.76,5.48647615]
[1729493970015,2.9616,168.87,168.78,2.9631]
[1729493970216,4.96,168.86,168.71,1.2888]
[1729493970421,4.96,168.85,168.72,2.5453]
[1729493970613,4.96,168.84,168.78,2.9631]
[1729493970815,4.96,168.84,168.71,1.2888]
[1729493971016,4.96,168.84,168.72,1.3068]
[1729493971514,4.96,168.84,168.73,1.3123]
[1729493972321,7.9221,168.84,168.76,2.9633]
[1729493972516,7.9221,168.84,168.73,1.3123]
[1729493972724,4.96,168.84,168.73,1.3123]
[1729493972921,4.96,168.84,168.77,2.9633]
[1729493973320,4.96,168.84,168.73,1.3123]
[1729493973820,4.96,168.84,168.74,4.96]
[1729493974016,4.96,168.84,168.8,2.9628]
[1729493974216,1.3459,168.92,168.74,4.96]
[1729493974415,4.96,168.91,168.74,4.96]
[1729493974617,4.96,168.91,168.75,1.08907947]
[1729493976023,1.3459,168.92,168.75,1.08907947]
[1729493976222,4.96,168.91,168.75,1.08907947]
[1729493976423,4.96,168.91,168.74,4.96]
[1729493976627,4.96,168.91,168.75,1.08903787]
[1729493976922,2.9613,168.89,168.75,1.08903787]
[1729493977327,2.9613,168.89,168.82,2.9623]
[1729493977726,4.96,168.9,168.82,3.02092517]
[1729493977921,4.96,168.9,168.85,2.9619]
[1729493978319,4.96,168.9,168.83,1.2564]
[1729493978521,4.96,168.9,168.79,1.2906]
[1729493978720,4.96,168.9,168.8,2.5543]
[1729493978920,4.96,168.9,168.87,2.9615]
[1729493979124,4.96,168.9,168.8,10.52337376]
[1729493979428,4.96,168.9,168.83,2.9622]
[1729493980022,7.921,168.9,168.8,7.5143]
[1729493980232,7.921,168.9,168.84,2.9621]
[1729493980529,1.3459,168.92,168.8,10.47188701]
[1729493980728,6.3059,168.92,168.87,2.9614]
[1729493980924,4.96,168.92,168.8,10.47188701]
[1729493981324,4.96,168.92,168.81,1.08874054]
[1729493981525,1.2252,168.94,168.81,1.08874054]
[1729493981727,4.96,168.95,168.81,1.08874054]
[1729493981929,1.2834,168.98,168.82,1.08874054]
[1729493982233,4.96,169.06,169.0,2.9592]
[1729493982733,4.96,169.06,168.95,4.96]
[1729493983933,2.511,169.08,168.98,2.9596]
[1729493984230,7.631,169.08,168.95,4.96]
[1729493984431,2.511,169.08,168.95,4.96]
[1729493984627,1.2834,169.08,168.95,4.96]
[1729493985728,17.7,169.34,168.9,17.7]
[1729493986032,17.7,169.34,168.89,334.947]
[1729493986033,2.9562,169.18,168.96,1.08779054]
[1729493986228,2.9562,169.18,168.91,11.0417]
[1729493986229,2.5492,169.22,168.97,5.12]
[1729493986429,2.5492,169.22,168.98,1.3019]
[1729493986638,2.5492,169.22,168.99,1.08779054]
[1729493986930,2.5492,169.22,169.0,65.04779054]
[1729493987125,5.12,169.29,169.01,1.08779054]
[1729493987335,1.2302,169.28,169.02,6.20779054]
[1729493987532,2.9546,169.27,169.19,2.9559]
[1729493987733,1.2302,169.28,169.12,63.92]
[1729493987936,1.2302,169.28,169.03,1.08779054]
[1729493987937,1.2302,169.28,169.13,5.12]
[1729493988134,2.9546,169.27,169.13,5.12]
[1729493988827,2.9546,169.27,169.16,2.9564]
[1729493989036,2.9546,169.27,169.12,6.82010544]
[1729493989037,1.2302,169.28,169.12,3.8876]
[1729493989333,6.3502,169.28,169.13,5.12]
[1729493989935,6.3502,169.28,169.16,2.9565]
[1729493990444,2.955,169.25,169.17,5.12]
[1729493990734,2.955,169.25,169.17,2.9563]
[1729493990928,2.955,169.25,169.17,8.0763]
[1729493991724,1.3303,169.32,169.17,5.12]
[1729493991923,1.3511,169.31,169.12,3.8876]
[1729493992424,2.9547,169.27,169.2,2.9557]
[1729493992628,5.12,169.28,169.18,5.12]
[1729493993024,2.9541,169.3,169.22,2.9554]
[1729493993231,6.4711,169.31,169.22,2.9554]
[1729493993623,6.4711,169.31,169.27,0.1]
[1729493993828,2.9544,169.29,169.27,0.1]
[1729493995536,6.4711,169.31,169.17,2.9563]
[1729493995734,17.7,169.3,169.13,5.12]
[1729493996128,2.9551,169.24,169.18,2.9561]
[1729493997037,5.12,169.26,169.19,2.9559]
[1729493997038,2.9549,169.25,169.19,2.9559]
[1729493997332,5.12,169.26,169.17,5.12]
[1729493997539,8.0749,169.26,169.2,2.9557]
[1729493997739,5.12,169.26,169.2,2.9557]
[1729493998838,2.9554,169.23,169.17,2.9562]
[1729493999039,5.12,169.26,169.16,5.12]
[1729493999839,2.9551,169.24,169.18,2.956]
[1729494000041,5.12,169.26,169.16,5.12]
[1729494000735,5.12,169.29,169.16,5.12]
[1729494000939,1.3511,169.31,169.16,5.12]
[1729494001142,5.12,169.3,169.12,3.8876]
[1729494001442,2.9545,169.28,169.22,2.9554]
[1729494001832,2.9545,169.28,169.18,5.12]
[1729494002034,5.12,169.3,169.18,5.12]
[1729494002230,5.12,169.3,169.12,3.8876]
[1729494002443,22.82,169.3,169.15,2.9565]
[1729494002635,22.82,169.3,169.09,5.12]
[1729494003234,22.82,169.3,169.09,8.0774344]
[1729494003437,22.82,169.3,169.15,2.9566]
[1729494003738,22.82,169.3,169.13,5.12]
[1729494004043,5.12,169.3,169.21,2.9556]
[1729494004239,5.12,169.3,169.14,1.2836]
[1729494004438,5.12,169.29,169.15,5.12]
[1729494004644,5.12,169.29,169.24,2.955]
[1729494005943,5.12,169.29,169.19,5.12]
[1729494006537,1.3511,169.31,169.19,5.12]
[1729494006538,6.4711,169.31,169.19,5.12]
[1729494006742,6.4711,169.31,169.24,2.955]
[1729494006941,9.4251,169.31,169.19,5.12]
[1729494007142,4.3051,169.31,169.19,5.12]
[1729494007348,6.4711,169.31,169.19,5.12]
[1729494007546,2.9541,169.3,169.19,5.12]
[1729494007943,6.4711,169.31,169.22,2.9553]
[1729494008142,4.3051,169.31,169.19,5.12]
[1729494008548,1.3511,169.31,169.19,5.12]
[1729494008744,1.3511,169.31,169.14,3.8253]
[1729494008938,1.3511,169.31,169.15,5.12]
[1729494009248,2.9553,169.23,169.15,5.12]
[1729494009545,5.12,169.25,169.15,5.12]
[1729494010151,5.12,169.28,169.15,5.12]
[1729494010452,2.9547,169.27,169.2,2.9556]
[1729494010849,1.3511,169.31,169.15,5.12]
[1729494011047,63.96,169.38,169.15,5.12]
[1729494011241,2.954,169.31,169.21,2.9555]
[1729494011449,2.954,169.31,169.21,5.12]
[1729494011750,1.3095,169.36,169.21,5.12]
[1729494012047,5.12,169.35,169.22,1.2878]
[1729494012354,2.9535,169.34,169.28,2.9542]
[1729494012545,5.12,169.35,169.25,5.12]
[1729494012951,8.0732,169.35,169.25,5.12]
[1729494013945,2.9538,169.32,169.27,2.9544]
[1729494014146,5.12,169.35,169.25,5.12]
[1729494014651,2.9534,169.34,169.29,2.9542]
[1729494014843,8.2534,169.34,169.25,5.12]
[1729494015044,5.3,169.34,169.25,5.12]
[1729494015350,5.3,169.34,169.23,5.3]
[1729494015747,5.3,169.33,169.23,5.3]
[1729494015954,5.3,169.33,169.22,2.6208]
[1729494016155,5.3,169.36,169.23,5.3]
[1729494016352,2.4897,169.37,169.23,5.3]
[1729494016552,5.3,169.36,169.23,5.3]
[1729494016748,2.9533,169.35,169.29,2.9541]
[1729494016954,5.3,169.41,169.28,5.3]
[1729494017249,5.3,169.4,169.28,5.3]
[1729494017460,2.9529,169.37,169.28,5.3]
[1729494017751,1.2342,169.4,169.28,5.3]
[1729494017954,6.623,169.39,169.28,5.3]
[1729494018256,6.623,169.39,169.27,5.3]
[1729494018457,6.623,169.39,169.22,2.6208]
[1729494018949,2.9545,169.28,169.23,2.9551]
[1729494019659,2.9546,169.27,169.22,1.2878]
[1729494019855,5.3,169.31,169.19,5.3]
[1729494020053,3.8799,169.3,169.19,5.3]
[1729494020552,2.9546,169.27,169.19,5.3]
[1729494020860,2.9546,169.27,169.16,2.6617]
[1729494021053,2.9546,169.27,169.19,5.3]
[1729494021252,3.8799,169.3,169.19,5.3]
[1729494021456,3.8799,169.3,169.25,2.9548]
[1729494021654,2.6107,169.3,169.25,2.9548]
[1729494022252,2.9542,169.29,169.2,1.3029]
[1729494022559,2.9542,169.29,169.24,2.9551]
[1729494023456,2.6107,169.3,169.16,2.6617]
[1729494023662,2.955,169.25,169.2,2.9557]
[1729494024153,2.9553,169.23,169.19,2.9559]
[1729494024356,5.3,169.26,169.13,5.3]
[1729494024765,2.9555,169.22,169.17,2.9561]
[1729494025057,5.3,169.26,169.13,5.3]
[1729494025454,2.9553,169.23,169.13,5.3]
[1729494025654,5.3,169.26,169.13,5.3]
[1729494026250,5.3,169.26,169.14,1.0868259]
[1729494026452,5.3,169.26,169.13,5.3]
[1729494026453,2.955,169.25,169.19,2.9558]
[1729494026662,2.955,169.25,169.13,5.3]
[1729494026863,5.3,169.26,169.13,5.3]
[1729494027058,2.9559,169.2,169.14,2.9567]
[1729494027363,5.3,169.21,169.11,1.2561]
[1729494027558,2.9561,169.19,169.13,2.9568]
[1729494027858,8.2561,169.19,169.13,2.9568]
[1729494028059,5.3,169.19,169.11,1.2561]
[1729494028256,2.9561,169.18,169.11,1.2561]
[1729494028461,5.3,169.19,169.11,1.2561]
[1729494028661,2.9565,169.16,169.11,1.2561]
[1729494028958,5.3,169.19,169.06,6.5965]
[1729494029159,2.9574,169.11,169.06,1.3289]
[1729494029361,5.3,169.13,169.06,1.3289]
[1729494029565,5.3,169.13,169.0,7.8426]
[1729494029755,2.9577,169.1,169.04,2.9586]
[1729494030155,5.3,169.13,169.04,2.9586]
[1729494030663,5.3,169.13,169.02,2.9588]
[1729494030862,5.3,169.13,169.01,1.3289]
[1729494031062,5.3,169.13,168.99,2.9593]
[1729494031266,72.07483042,169.13,168.99,2.9593]
[1729494031457,72.07483042,169.13,168.95,3.8011]
[1729494031458,17.7,169.12,168.95,3.8011]
[1729494031758,17.7,169.12,168.89,5.3]
[1729494031955,18.7,169.12,168.9,1.0880612]
[1729494032157,18.7,169.12,168.87,3.8419]
[1729494032366,17.7,169.1,168.87,3.8419]
[1729494032563,2.9587,169.04,168.87,3.8419]
[1729494032756,5.3,169.03,168.88,1.08827787]
[1729494032959,5.3,169.03,168.89,4.12096288]
[1729494033159,8.2588,169.03,168.9,5.3]
[1729494033360,5.3,169.03,168.9,1.08827787]
[1729494033559,2.9595,168.99,168.94,2.9602]
[1729494033756,5.3,169.03,168.91,1.08827787]
[1729494033964,5.3,169.03,168.88,5.3]
[1729494034164,2.9599,168.97,168.87,3.8419]
[1729494034472,5.3,168.96,168.87,3.8419]
[1729494034666,5.3,168.96,168.91,2.9607]
[1729494035560,5.3,168.96,168.88,2.9613]
[1729494035760,1.2229,168.95,168.88,2.9613]
[1729494036668,1.2229,168.95,168.81,9.1081]
[1729494036669,2.9607,168.92,168.81,9.1081]
[1729494036868,1.2229,168.95,168.81,3.8081]
[1729494037065,5.3,168.94,168.82,1.08866169]
[1729494037273,2.9605,168.93,168.82,1.08865689]
[1729494037569,2.9605,168.93,168.81,9.1081]
[1729494037770,5.3,168.94,168.81,9.1081]
[1729494037971,8.2606,168.93,168.81,9.1081]
[1729494038776,8.2606,168.93,168.84,2.962]
[1729494039069,2.9607,168.92,168.81,9.1081]
[1729494040067,2.9607,168.92,168.84,2.962]
[1729494040268,2.9607,168.92,168.81,9.1081]
[1729494040463,2.9609,168.91,168.81,9.1081]
[1729494040971,8.2809,168.91,168.81,9.1081]
[1729494041173,1.2229,168.95,168.81,9.1081]
[1729494041478,63.92,169.01,168.81,9.1081]
[1729494041767,29.5347,169.34,168.81,9.1081]
[1729494041768,2.5364,169.03,168.82,1.08872017]
[1729494041969,5.32,169.02,168.82,1.08872017]
[1729494042277,5.32,169.02,168.83,1.08872017]
[1729494042667,5.32,169.02,168.84,1.08872017]
[1729494042968,5.32,169.02,168.81,15.0331]
[1729494042969,2.9592,169.01,168.94,2.9602]
[1729494043364,1.2712,169.07,168.94,2.9602]
[1729494043365,5.32,169.02,168.94,2.9602]
[1729494043563,2.9595,168.99,168.92,1.3431]
[1729494044176,2.9595,168.99,168.93,2.9605]
[1729494044376,5.32,169.02,168.92,1.3431]
[1729494044770,5.32,169.02,168.92,4.3037]
[1729494045077,2.9596,168.99,168.92,4.3037]
[1729494045382,5.32,169.02,168.9,2.6287]
[1729494045669,5.32,169.02,168.85,5.32]
[1729494045975,2.9594,169.0,168.85,5.32]
[1729494046175,5.32,169.02,168.85,5.32]
[1729494046677,2.9596,168.98,168.91,2.9607]
[1729494046870,2.9596,168.98,168.79,3.8282]
[1729494046871,5.32,169.06,168.9,5.32]
[1729494047077,5.32,169.06,168.91,3.9232]
[1729494047274,23.02,169.06,168.91,3.9232]
[1729494047873,23.02,169.06,168.92,2.9605]
[1729494048772,23.02,169.06,168.93,2.9603]
[1729494049880,2.9596,168.99,168.93,2.9603]
[1729494050083,5.32,168.98,168.93,2.9603]
[1729494050286,2.96,168.96,168.91,2.9608]
[1729494050580,5.32,168.98,168.87,5.32]
[1729494051782,8.2796,168.98,168.87,5.32]
[1729494053579,8.2796,168.98,168.81,3.9232]
[1729494053779,8.2796,168.98,168.82,6.40860785]
[1729494053983,8.2796,168.98,168.92,2.9605]
[1729494054286,5.32,168.98,168.88,5.32]
[1729494054483,5.32,168.98,168.92,2.9606]
[1729494055189,8.2798,168.98,168.92,2.9606]
[1729494056679,5.32,168.98,168.89,1.3275]
[1729494057384,1.2712,169.07,168.89,1.3275]
[1729494057385,2.9589,169.03,168.89,1.3275]
[1729494057587,1.2712,169.07,168.9,2.4581]
[1729494057588,5.32,169.02,168.9,2.4581]
[1729494057978,5.32,169.02,168.95,2.9601]
[1729494057979,2.9594,169.0,168.95,2.9601]
[1729494058178,5.32,169.02,168.95,2.9601]
[1729494058383,5.32,169.02,168.96,2.9598]
[1729494058583,8.2791,169.02,168.96,2.9598]
[1729494058987,5.32,169.02,168.96,2.9598]
[1729494059188,5.32,169.02,168.97,2.9598]
[1729494059677,8.279,169.02,168.97,2.9598]
[1729494060183,8.279,169.02,168.93,2.9604]
[1729494060383,8.279,169.02,168.9,2.4581]
[1729494060892,5.32,169.02,168.9,2.4581]
[1729494061081,2.9589,169.03,168.9,2.4581]
[1729494061285,5.32,169.03,168.9,2.4581]
[1729494061590,2.9589,169.02,168.9,2.4581]
[1729494061979,5.32,169.03,168.9,2.4581]
[1729494062180,5.32,169.03,168.99,2.9594]
[1729494062787,1.2712,169.07,168.94,5.32]
[1729494062988,5.32,169.06,169.01,2.959]
[1729494063385,8.2783,169.06,169.01,2.959]
[1729494063584,5.32,169.06,169.01,2.959]
[1729494064188,5.32,169.06,168.94,5.32]